Workbook

Sheet 災害廃棄物事業経費（市町村）
A1: 【災害】廃棄物処理事業経費（市区町村の合計）（平成30年度実績）
A2: 都道府県名 | B2: 地方公共団体コード | C2: 市区町村名 | D2: ごみ | M2: し尿 | V2: 合計 | AE2: ごみ（建設改良費＋処理維持管理費＋その他）（組合分担金を除く） | BG2: し尿（建設改良費＋処理維持管理費＋その他）（組合分担金を除く） | CI2: 合計（建設改良費＋処理維持管理費＋その他）（組合分担金を除く）
D3: 合計 (特定財源(市区町村分担金を除く)+一般財源) | M3: 合計 (特定財源(市区町村分担金を除く)+一般財源) | V3: 合計 (特定財源(市区町村分担金を除く)+一般財源) | AE3: 建設改良費 (工事費+調査費)(組合分担金を除く) | AM3: 処理及び維持管理費 (人件費+処理費+車両購入費+委託費+調査研究費)(組合分担金を除く) | BE3: その他 | BF3: 合計 | BG3: 建設改良費 (工事費+調査費)(組合分担金を除く) | BO3: 処理及び維持管理費 (人件費+処理費+車両購入費+委託費+調査研究費)(組合分担金を除く) | CG3: その他 | CH3: 合計 | CI3: 建設改良費 (工事費+調査費)(組合分担金を除く) | CQ3: 処理及び維持管理費 (人件費+処理費+車両購入費+委託費+調査研究費)(組合分担金を除く) | DI3: その他 | DJ3: 合計
E4: 特定財源 (市区町村分担金を除く) | L4: 一般財源 | N4: 特定財源 (市区町村分担金を除く) | U4: 一般財源 | W4: 特定財源 (市区町村分担金を除く) | AD4: 一般財源 | AE4: 合計 | AF4: 工事費 (中間処理施設+最終処分場+その他) | AK4: 調査費 | AL4: （建設改良費組合分担金） | AM4: 合計 | AN4: 人件費（一般職＋収集運搬＋中間処理＋最終処分） | AS4: 処理費 (収集運搬費+中間処理費+最終処分費) | AW4: 車両等購入費 | AX4: 委託費 (収集運搬費+中間処理費+最終処分費+その他) | BC4: (組合分担金) | BD4: 調査研究費 | BG4: 合計 | BH4: 工事費 (中間処理施設+最終処分場+その他) | BM4: 調査費 | BN4: （建設改良費組合分担金） | BO4: 合計 | BP4: 人件費（一般職＋収集運搬＋中間処理＋最終処分） | BU4: 処理費 (収集運搬費+中間処理費+最終処分費) | BY4: 車両等購入費 | BZ4: 委託費 (収集運搬費+中間処理費+最終処分費+その他) | CE4: (組合分担金) | CF4: 調査研究費 | CI4: 合計 | CJ4: 工事費 (中間処理施設+最終処分場+その他) | CO4: 調査費 | CP4: （建設改良費組合分担金） | CQ4: 合計 | CR4: 人件費（一般職＋収集運搬＋中間処理＋最終処分） | CW4: 処理費 (収集運搬費+中間処理費+最終処分費) | DA4: 車両等購入費 | DB4: 委託費 (収集運搬費+中間処理費+最終処分費+その他) | DG4: (組合分担金) | DH4: 調査研究費
F5: 国庫支出金 | G5: 都道府県 支出金 | H5: 地方債 | I5: 使用料及び 手数料 | J5: （市区町村 分担金） | K5: その他 | O5: 国庫支出金 | P5: 都道府県 支出金 | Q5: 地方債 | R5: 使用料及び 手数料 | S5: （市区町村 分担金） | T5: その他 | X5: 国庫支出金 | Y5: 都道府県 支出金 | Z5: 地方債 | AA5: 使用料及び 手数料 | AB5: （市区町村 分担金） | AC5: その他 | AF5: 合計 | AG5: 収集運搬施設 | AH5: 中間処理施設 | AI5: 最終処分場 | AJ5: その他 | AO5: 一般職 | AP5: 収集運搬 | AQ5: 中間処理 | AR5: 最終処分 | AS5: 合計 | AT5: 収集運搬費 | AU5: 中間処理費 | AV5: 最終処分費 | AY5: 収集運搬費 | AZ5: 中間処理費 | BA5: 最終処分費 | BB5: その他 | BH5: 合計 | BI5: 収集運搬施設 | BJ5: 中間処理施設 | BK5: 最終処分場 | BL5: その他 | BQ5: 一般職 | BR5: 収集運搬 | BS5: 中間処理 | BT5: 最終処分 | BU5: 合計 | BV5: 収集運搬費 | BW5: 中間処理費 | BX5: 最終処分費 | CA5: 収集運搬費 | CB5: 中間処理費 | CC5: 最終処分費 | CD5: その他 | CJ5: 合計 | CK5: 収集運搬施設 | CL5: 中間処理施設 | CM5: 最終処分場 | CN5: その他 | CS5: 一般職 | CT5: 収集運搬 | CU5: 中間処理 | CV5: 最終処分 | CW5: 合計 | CX5: 収集運搬費 | CY5: 中間処理費 | CZ5: 最終処分費 | DC5: 収集運搬費 | DD5: 中間処理費 | DE5: 最終処分費 | DF5: その他
D6: （千円） | E6: （千円） | F6: （千円） | G6: （千円） | H6: （千円） | I6: （千円） | J6: （千円） | K6: （千円） | L6: （千円） | M6: （千円） | N6: （千円） | O6: （千円） | P6: （千円） | Q6: （千円） | R6: （千円） | S6: （千円） | T6: （千円） | U6: （千円） | V6: （千円） | W6: （千円） | X6: （千円） | Y6: （千円） | Z6: （千円） | AA6: （千円） | AB6: （千円） | AC6: （千円） | AD6: （千円） | AE6: （千円） | AF6: （千円） | AG6: （千円） | AH6: （千円） | AI6: （千円） | AJ6: （千円） | AK6: （千円） | AL6: （千円） | AM6: （千円） | AN6: （千円） | AO6: （千円） | AP6: （千円） | AQ6: （千円） | AR6: （千円） | AS6: （千円） | AT6: （千円） | AU6: （千円） | AV6: （千円） | AW6: （千円） | AX6: （千円） | AY6: （千円） | AZ6: （千円） | BA6: （千円） | BB6: （千円） | BC6: （千円） | BD6: （千円） | BE6: （千円） | BF6: （千円） | BG6: （千円） | BH6: （千円） | BI6: （千円） | BJ6: （千円） | BK6: （千円） | BL6: （千円） | BM6: （千円） | BN6: （千円） | BO6: （千円） | BP6: （千円） | BQ6: （千円） | BR6: （千円） | BS6: （千円） | BT6: （千円） | BU6: （千円） | BV6: （千円） | BW6: （千円） | BX6: （千円） | BY6: （千円） | BZ6: （千円） | CA6: （千円） | CB6: （千円） | CC6: （千円） | CD6: （千円） | CE6: （千円） | CF6: （千円） | CG6: （千円） | CH6: （千円） | CI6: （千円） | CJ6: （千円） | CK6: （千円） | CL6: （千円） | CM6: （千円） | CN6: （千円） | CO6: （千円） | CP6: （千円） | CQ6: （千円） | CR6: （千円） | CS6: （千円） | CT6: （千円） | CU6: （千円） | CV6: （千円） | CW6: （千円） | CX6: （千円） | CY6: （千円） | CZ6: （千円） | DA6: （千円） | DB6: （千円） | DC6: （千円） | DD6: （千円） | DE6: （千円） | DF6: （千円） | DG6: （千円） | DH6: （千円） | DI6: （千円） | DJ6: （千円）
A7: 高知県 | B7: 39000 | C7: 合計 | D7: =SUM($D$8:$D$10) -> 59,298 | E7: =SUM($E$8:$E$10) -> 43,755 | F7: =SUM($F$8:$F$10) -> 28,755 | G7: =SUM($G$8:$G$10) -> 0 | H7: =SUM($H$8:$H$10) -> 15,000 | I7: =SUM($I$8:$I$10) -> 0 | J7: - | K7: =SUM($K$8:$K$10) -> 0 | L7: =SUM($L$8:$L$10) -> 15,543 | M7: =SUM($M$8:$M$10) -> 170 | N7: =SUM($N$8:$N$10) -> 85 | O7: =SUM($O$8:$O$10) -> 85 | P7: =SUM($P$8:$P$10) -> 0 | Q7: =SUM($Q$8:$Q$10) -> 0 | R7: =SUM($R$8:$R$10) -> 0 | S7: - | T7: =SUM($T$8:$T$10) -> 0 | U7: =SUM($U$8:$U$10) -> 85 | V7: =SUM($V$8:$V$10) -> 59,468 | W7: =SUM($W$8:$W$10) -> 43,840 | X7: =SUM($X$8:$X$10) -> 28,840 | Y7: =SUM($Y$8:$Y$10) -> 0 | Z7: =SUM($Z$8:$Z$10) -> 15,000 | AA7: =SUM($AA$8:$AA$10) -> 0 | AB7: - | AC7: =SUM($AC$8:$AC$10) -> 0 | AD7: =SUM($AD$8:$AD$10) -> 15,628 | AE7: =SUM($AE$8:$AE$10) -> 21,682 | AF7: =SUM($AF$8:$AF$10) -> 21,682 | AG7: =SUM($AG$8:$AG$10) -> 0 | AH7: =SUM($AH$8:$AH$10) -> 0 | AI7: =SUM($AI$8:$AI$10) -> 0 | AJ7: =SUM($AJ$8:$AJ$10) -> 21,682 | AK7: =SUM($AK$8:$AK$10) -> 0 | AL7: =SUM($AL$8:$AL$10) -> 0 | AM7: =SUM($AM$8:$AM$10) -> 35,318 | AN7: =SUM($AN$8:$AN$10) -> 0 | AO7: =SUM($AO$8:$AO$10) -> 0 | AP7: =SUM($AP$8:$AP$10) -> 0 | AQ7: =SUM($AQ$8:$AQ$10) -> 0 | AR7: =SUM($AR$8:$AR$10) -> 0 | AS7: =SUM($AS$8:$AS$10) -> 8,909 | AT7: =SUM($AT$8:$AT$10) -> 3,780 | AU7: =SUM($AU$8:$AU$10) -> 0 | AV7: =SUM($AV$8:$AV$10) -> 5,129 | AW7: =SUM($AW$8:$AW$10) -> 0 | AX7: =SUM($AX$8:$AX$10) -> 26,409 | AY7: =SUM($AY$8:$AY$10) -> 2,808 | AZ7: =SUM($AZ$8:$AZ$10) -> 480 | BA7: =SUM($BA$8:$BA$10) -> 0 | BB7: =SUM($BB$8:$BB$10) -> 23,121 | BC7: =SUM($BC$8:$BC$10) -> 0 | BD7: =SUM($BD$8:$BD$10) -> 0 | BE7: =SUM($BE$8:$BE$10) -> 2,298 | BF7: =SUM($BF$8:$BF$10) -> 59,298 | BG7: =SUM($BG$8:$BG$10) -> 0 | BH7: =SUM($BH$8:$BH$10) -> 0 | BI7: =SUM($BI$8:$BI$10) -> 0 | BJ7: =SUM($BJ$8:$BJ$10) -> 0 | BK7: =SUM($BK$8:$BK$10) -> 0 | BL7: =SUM($BL$8:$BL$10) -> 0 | BM7: =SUM($BM$8:$BM$10) -> 0 | BN7: =SUM($BN$8:$BN$10) -> 0 | BO7: =SUM($BO$8:$BO$10) -> 170 | BP7: =SUM($BP$8:$BP$10) -> 0 | BQ7: =SUM($BQ$8:$BQ$10) -> 0 | BR7: =SUM($BR$8:$BR$10) -> 0 | BS7: =SUM($BS$8:$BS$10) -> 0 | BT7: =SUM($BT$8:$BT$10) -> 0 | BU7: =SUM($BU$8:$BU$10) -> 170 | BV7: =SUM($BV$8:$BV$10) -> 0 | BW7: =SUM($BW$8:$BW$10) -> 170 | BX7: =SUM($BX$8:$BX$10) -> 0 | BY7: =SUM($BY$8:$BY$10) -> 0 | BZ7: =SUM($BZ$8:$BZ$10) -> 0 | CA7: =SUM($CA$8:$CA$10) -> 0 | CB7: =SUM($CB$8:$CB$10) -> 0 | CC7: =SUM($CC$8:$CC$10) -> 0 | CD7: =SUM($CD$8:$CD$10) -> 0 | CE7: =SUM($CE$8:$CE$10) -> 0 | CF7: =SUM($CF$8:$CF$10) -> 0 | CG7: =SUM($CG$8:$CG$10) -> 0 | CH7: =SUM($CH$8:$CH$10) -> 170 | CI7: =SUM($CI$8:$CI$10) -> 21,682 | CJ7: =SUM($CJ$8:$CJ$10) -> 21,682 | CK7: =SUM($CK$8:$CK$10) -> 0 | CL7: =SUM($CL$8:$CL$10) -> 0 | CM7: =SUM($CM$8:$CM$10) -> 0 | CN7: =SUM($CN$8:$CN$10) -> 21,682 | CO7: =SUM($CO$8:$CO$10) -> 0 | CP7: =SUM($CP$8:$CP$10) -> 0 | CQ7: =SUM($CQ$8:$CQ$10) -> 35,488 | CR7: =SUM($CR$8:$CR$10) -> 0 | CS7: =SUM($CS$8:$CS$10) -> 0 | CT7: =SUM($CT$8:$CT$10) -> 0 | CU7: =SUM($CU$8:$CU$10) -> 0 | CV7: =SUM($CV$8:$CV$10) -> 0 | CW7: =SUM($CW$8:$CW$10) -> 9,079 | CX7: =SUM($CX$8:$CX$10) -> 3,780 | CY7: =SUM($CY$8:$CY$10) -> 170 | CZ7: =SUM($CZ$8:$CZ$10) -> 5,129 | DA7: =SUM($DA$8:$DA$10) -> 0 | DB7: =SUM($DB$8:$DB$10) -> 26,409 | DC7: =SUM($DC$8:$DC$10) -> 2,808 | DD7: =SUM($DD$8:$DD$10) -> 480 | DE7: =SUM($DE$8:$DE$10) -> 0 | DF7: =SUM($DF$8:$DF$10) -> 23,121 | DG7: =SUM($DG$8:$DG$10) -> 0 | DH7: =SUM($DH$8:$DH$10) -> 0 | DI7: =SUM($DI$8:$DI$10) -> 2,298 | DJ7: =SUM($DJ$8:$DJ$10) -> 59,468
A8: 高知県 | B8: 39203 | C8: 安芸市 | D8: =SUM(E8,+L8) -> 480 | E8: =SUM(F8:I8)+K8 -> 240 | F8: 240 | G8: 0 | H8: 0 | I8: 0 | J8: - | K8: 0 | L8: 240 | M8: =SUM(N8,+U8) -> 170 | N8: =SUM(O8:R8)+T8 -> 85 | O8: 85 | P8: 0 | Q8: 0 | R8: 0 | S8: - | T8: 0 | U8: 85 | V8: 650 | W8: 325 | X8: 325 | Y8: 0 | Z8: 0 | AA8: 0 | AB8: - | AC8: 0 | AD8: 325 | AE8: =SUM(AF8,+AK8) -> 0 | AF8: =SUM(AG8:AJ8) -> 0 | AG8: 0 | AH8: 0 | AI8: 0 | AJ8: 0 | AK8: 0 | AL8: =組合分担金内訳!D8 -> 0 | AM8: =SUM(AN8,AS8,AW8,AX8,BD8) -> 480 | AN8: =SUM(AO8:AR8) -> 0 | AO8: 0 | AP8: 0 | AQ8: 0 | AR8: 0 | AS8: =SUM(AT8:AV8) -> 0 | AT8: 0 | AU8: 0 | AV8: 0 | AW8: 0 | AX8: =SUM(AY8:BB8) -> 480 | AY8: 0 | AZ8: 480 | BA8: 0 | BB8: 0 | BC8: =組合分担金内訳!E8 -> 0 | BD8: 0 | BE8: 0 | BF8: =SUM(AE8,+AM8,+BE8) -> 480 | BG8: =SUM(BH8,+BM8) -> 0 | BH8: =SUM(BI8:BL8) -> 0 | BI8: 0 | BJ8: 0 | BK8: 0 | BL8: 0 | BM8: 0 | BN8: =組合分担金内訳!G8 -> 0 | BO8: =SUM(BP8,BU8,BY8,BZ8,CF8) -> 170 | BP8: =SUM(BQ8:BT8) -> 0 | BQ8: 0 | BR8: 0 | BS8: 0 | BT8: 0 | BU8: =SUM(BV8:BX8) -> 170 | BV8: 0 | BW8: 170 | BX8: 0 | BY8: 0 | BZ8: =SUM(CA8:CD8) -> 0 | CA8: 0 | CB8: 0 | CC8: 0 | CD8: 0 | CE8: =組合分担金内訳!H8 -> 0 | CF8: 0 | CG8: 0 | CH8: =SUM(BG8,+BO8,+CG8) -> 170 | CI8: =SUM(AE8,+BG8) -> 0 | CJ8: =SUM(AF8,+BH8) -> 0 | CK8: =SUM(AG8,+BI8) -> 0 | CL8: =SUM(AH8,+BJ8) -> 0 | CM8: =SUM(AI8,+BK8) -> 0 | CN8: =SUM(AJ8,+BL8) -> 0 | CO8: =SUM(AK8,+BM8) -> 0 | CP8: =SUM(AL8,+BN8) -> 0 | CQ8: =SUM(AM8,+BO8) -> 650 | CR8: =SUM(AN8,+BP8) -> 0 | CS8: =SUM(AO8,+BQ8) -> 0 | CT8: =SUM(AP8,+BR8) -> 0 | CU8: =SUM(AQ8,+BS8) -> 0 | CV8: =SUM(AR8,+BT8) -> 0 | CW8: =SUM(AS8,+BU8) -> 170 | CX8: =SUM(AT8,+BV8) -> 0 | CY8: =SUM(AU8,+BW8) -> 170 | CZ8: =SUM(AV8,+BX8) -> 0 | DA8: =SUM(AW8,+BY8) -> 0 | DB8: =SUM(AX8,+BZ8) -> 480 | DC8: =SUM(AY8,+CA8) -> 0 | DD8: =SUM(AZ8,+CB8) -> 480 | DE8: =SUM(BA8,+CC8) -> 0 | DF8: =SUM(BB8,+CD8) -> 0 | DG8: =SUM(BC8,+CE8) -> 0 | DH8: =SUM(BD8,+CF8) -> 0 | DI8: =SUM(BE8,+CG8) -> 0 | DJ8: =SUM(BF8,+CH8) -> 650
A9: 高知県 | B9: 39208 | C9: 宿毛市 | D9: =SUM(E9,+L9) -> 28,700 | E9: =SUM(F9:I9)+K9 -> 13,457 | F9: 13,457 | G9: 0 | H9: 0 | I9: 0 | J9: - | K9: 0 | L9: 15,243 | M9: =SUM(N9,+U9) -> 0 | N9: =SUM(O9:R9)+T9 -> 0 | O9: 0 | P9: 0 | Q9: 0 | R9: 0 | S9: - | T9: 0 | U9: 0 | V9: 28,700 | W9: 13,457 | X9: 13,457 | Y9: 0 | Z9: 0 | AA9: 0 | AB9: - | AC9: 0 | AD9: 15,243 | AE9: =SUM(AF9,+AK9) -> 21,682 | AF9: =SUM(AG9:AJ9) -> 21,682 | AG9: 0 | AH9: 0 | AI9: 0 | AJ9: 21,682 | AK9: 0 | AL9: =組合分担金内訳!D9 -> 0 | AM9: =SUM(AN9,AS9,AW9,AX9,BD9) -> 6,016 | AN9: =SUM(AO9:AR9) -> 0 | AO9: 0 | AP9: 0 | AQ9: 0 | AR9: 0 | AS9: =SUM(AT9:AV9) -> 6,016 | AT9: 3,780 | AU9: 0 | AV9: 2,236 | AW9: 0 | AX9: =SUM(AY9:BB9) -> 0 | AY9: 0 | AZ9: 0 | BA9: 0 | BB9: 0 | BC9: =組合分担金内訳!E9 -> 0 | BD9: 0 | BE9: 1,002 | BF9: =SUM(AE9,+AM9,+BE9) -> 28,700 | BG9: =SUM(BH9,+BM9) -> 0 | BH9: =SUM(BI9:BL9) -> 0 | BI9: 0 | BJ9: 0 | BK9: 0 | BL9: 0 | BM9: 0 | BN9: =組合分担金内訳!G9 -> 0 | BO9: =SUM(BP9,BU9,BY9,BZ9,CF9) -> 0 | BP9: =SUM(BQ9:BT9) -> 0 | BQ9: 0 | BR9: 0 | BS9: 0 | BT9: 0 | BU9: =SUM(BV9:BX9) -> 0 | BV9: 0 | BW9: 0 | BX9: 0 | BY9: 0 | BZ9: =SUM(CA9:CD9) -> 0 | CA9: 0 | CB9: 0 | CC9: 0 | CD9: 0 | CE9: =組合分担金内訳!H9 -> 0 | CF9: 0 | CG9: 0 | CH9: =SUM(BG9,+BO9,+CG9) -> 0 | CI9: 21,682 | CJ9: 21,682 | CK9: 0 | CL9: 0 | CM9: 0 | CN9: 21,682 | CO9: 0 | CP9: 0 | CQ9: 6,016 | CR9: 0 | CS9: 0 | CT9: 0 | CU9: 0 | CV9: 0 | CW9: 6,016 | CX9: 3,780 | CY9: 0 | CZ9: 2,236 | DA9: 0 | DB9: 0 | DC9: 0 | DD9: 0 | DE9: 0 | DF9: 0 | DG9: 0 | DH9: 0 | DI9: 1,002 | DJ9: 28,700
A10: 高知県 | B10: 39424 | C10: 大月町 | D10: =SUM(E10,+L10) -> 30,118 | E10: =SUM(F10:I10)+K10 -> 30,058 | F10: 15,058 | G10: 0 | H10: 15,000 | I10: 0 | J10: - | K10: 0 | L10: 60 | M10: =SUM(N10,+U10) -> 0 | N10: =SUM(O10:R10)+T10 -> 0 | O10: 0 | P10: 0 | Q10: 0 | R10: 0 | S10: - | T10: 0 | U10: 0 | V10: 30,118 | W10: 30,058 | X10: 15,058 | Y10: 0 | Z10: 15,000 | AA10: 0 | AB10: - | AC10: 0 | AD10: 60 | AE10: =SUM(AF10,+AK10) -> 0 | AF10: =SUM(AG10:AJ10) -> 0 | AG10: 0 | AH10: 0 | AI10: 0 | AJ10: 0 | AK10: 0 | AL10: =組合分担金内訳!D10 -> 0 | AM10: =SUM(AN10,AS10,AW10,AX10,BD10) -> 28,822 | AN10: =SUM(AO10:AR10) -> 0 | AO10: 0 | AP10: 0 | AQ10: 0 | AR10: 0 | AS10: =SUM(AT10:AV10) -> 2,893 | AT10: 0 | AU10: 0 | AV10: 2,893 | AW10: 0 | AX10: =SUM(AY10:BB10) -> 25,929 | AY10: 2,808 | AZ10: 0 | BA10: 0 | BB10: 23,121 | BC10: =組合分担金内訳!E10 -> 0 | BD10: 0 | BE10: 1,296 | BF10: =SUM(AE10,+AM10,+BE10) -> 30,118 | BG10: =SUM(BH10,+BM10) -> 0 | BH10: =SUM(BI10:BL10) -> 0 | BI10: 0 | BJ10: 0 | BK10: 0 | BL10: 0 | BM10: 0 | BN10: =組合分担金内訳!G10 -> 0 | BO10: =SUM(BP10,BU10,BY10,BZ10,CF10) -> 0 | BP10: =SUM(BQ10:BT10) -> 0 | BQ10: 0 | BR10: 0 | BS10: 0 | BT10: 0 | BU10: =SUM(BV10:BX10) -> 0 | BV10: 0 | BW10: 0 | BX10: 0 | BY10: 0 | BZ10: =SUM(CA10:CD10) -> 0 | CA10: 0 | CB10: 0 | CC10: 0 | CD10: 0 | CE10: =組合分担金内訳!H10 -> 0 | CF10: 0 | CG10: 0 | CH10: =SUM(BG10,+BO10,+CG10) -> 0 | CI10: 0 | CJ10: 0 | CK10: 0 | CL10: 0 | CM10: 0 | CN10: 0 | CO10: 0 | CP10: 0 | CQ10: 28,822 | CR10: 0 | CS10: 0 | CT10: 0 | CU10: 0 | CV10: 0 | CW10: 2,893 | CX10: 0 | CY10: 0 | CZ10: 2,893 | DA10: 0 | DB10: 25,929 | DC10: 2,808 | DD10: 0 | DE10: 0 | DF10: 23,121 | DG10: 0 | DH10: 0 | DI10: 1,296 | DJ10: 30,118

Sheet 災害廃棄物事業経費（組合）
A1: 【災害】廃棄物処理事業経費（一部事務組合・広域連合の合計）（平成30年度実績）
A2: 都道府県名 | B2: 地方公共団体コード | C2: 一部事務組合・広域連合名 | D2: ごみ | M2: し尿 | V2: 合計 | AE2: ごみ（建設改良費＋処理維持管理費＋その他）（組合分担金を除く） | BG2: し尿（建設改良費＋処理維持管理費＋その他）（組合分担金を除く） | CI2: 合計（建設改良費＋処理維持管理費＋その他）（組合分担金を除く）
D3: 合計 (特定財源(市区町村分担金を除く)+一般財源) | M3: 合計 (特定財源(市区町村分担金を除く)+一般財源) | V3: 合計 (特定財源(市区町村分担金を除く)+一般財源) | AE3: 建設改良費 (工事費+調査費)(組合分担金を除く) | AM3: 処理及び維持管理費 (人件費+処理費+車両購入費+委託費+調査研究費)(組合分担金を除く) | BE3: その他 | BF3: 合計 | BG3: 建設改良費 (工事費+調査費)(組合分担金を除く) | BO3: 処理及び維持管理費 (人件費+処理費+車両購入費+委託費+調査研究費)(組合分担金を除く) | CG3: その他 | CH3: 合計 | CI3: 建設改良費 (工事費+調査費)(組合分担金を除く) | CQ3: 処理及び維持管理費 (人件費+処理費+車両購入費+委託費+調査研究費)(組合分担金を除く) | DI3: その他 | DJ3: 合計
E4: 特定財源 (市区町村分担金を除く) | L4: 一般財源 | N4: 特定財源 (市区町村分担金を除く) | U4: 一般財源 | W4: 特定財源 (市区町村分担金を除く) | AD4: 一般財源 | AE4: 合計 | AF4: 工事費 (中間処理施設+最終処分場+その他) | AK4: 調査費 | AL4: （建設改良費組合分担金） | AM4: 合計 | AN4: 人件費（一般職＋収集運搬＋中間処理＋最終処分） | AS4: 処理費 (収集運搬費+中間処理費+最終処分費) | AW4: 車両等購入費 | AX4: 委託費 (収集運搬費+中間処理費+最終処分費+その他) | BC4: (組合分担金) | BD4: 調査研究費 | BG4: 合計 | BH4: 工事費 (中間処理施設+最終処分場+その他) | BM4: 調査費 | BN4: （建設改良費組合分担金） | BO4: 合計 | BP4: 人件費（一般職＋収集運搬＋中間処理＋最終処分） | BU4: 処理費 (収集運搬費+中間処理費+最終処分費) | BY4: 車両等購入費 | BZ4: 委託費 (収集運搬費+中間処理費+最終処分費+その他) | CE4: (組合分担金) | CF4: 調査研究費 | CI4: 合計 | CJ4: 工事費 (中間処理施設+最終処分場+その他) | CO4: 調査費 | CP4: （建設改良費組合分担金） | CQ4: 合計 | CR4: 人件費（一般職＋収集運搬＋中間処理＋最終処分） | CW4: 処理費 (収集運搬費+中間処理費+最終処分費) | DA4: 車両等購入費 | DB4: 委託費 (収集運搬費+中間処理費+最終処分費+その他) | DG4: (組合分担金) | DH4: 調査研究費
E5: 合計 | F5: 国庫支出金 | G5: 都道府県 支出金 | H5: 地方債 | I5: 使用料及び 手数料 | J5: （市区町村 分担金） | K5: その他 | N5: 合計 | O5: 国庫支出金 | P5: 都道府県 支出金 | Q5: 地方債 | R5: 使用料及び 手数料 | S5: （市区町村 分担金） | T5: その他 | W5: 合計 | X5: 国庫支出金 | Y5: 都道府県 支出金 | Z5: 地方債 | AA5: 使用料及び 手数料 | AB5: （市区町村 分担金） | AC5: その他 | AF5: 合計 | AG5: 収集運搬施設 | AH5: 中間処理施設 | AI5: 最終処分場 | AJ5: その他 | AN5: 合計 | AO5: 一般職 | AP5: 収集運搬 | AQ5: 中間処理 | AR5: 最終処分 | AS5: 合計 | AT5: 収集運搬費 | AU5: 中間処理費 | AV5: 最終処分費 | AX5: 合計 | AY5: 収集運搬費 | AZ5: 中間処理費 | BA5: 最終処分費 | BB5: その他 | BH5: 合計 | BI5: 収集運搬施設 | BJ5: 中間処理施設 | BK5: 最終処分場 | BL5: その他 | BP5: 合計 | BQ5: 一般職 | BR5: 収集運搬 | BS5: 中間処理 | BT5: 最終処分 | BU5: 合計 | BV5: 収集運搬費 | BW5: 中間処理費 | BX5: 最終処分費 | BZ5: 合計 | CA5: 収集運搬費 | CB5: 中間処理費 | CC5: 最終処分費 | CD5: その他 | CJ5: 合計 | CK5: 収集運搬施設 | CL5: 中間処理施設 | CM5: 最終処分場 | CN5: その他 | CR5: 合計 | CS5: 一般職 | CT5: 収集運搬 | CU5: 中間処理 | CV5: 最終処分 | CW5: 合計 | CX5: 収集運搬費 | CY5: 中間処理費 | CZ5: 最終処分費 | DB5: 合計 | DC5: 収集運搬費 | DD5: 中間処理費 | DE5: 最終処分費 | DF5: その他
D6: （千円） | E6: （千円） | F6: （千円） | G6: （千円） | H6: （千円） | I6: （千円） | J6: （千円） | K6: （千円） | L6: （千円） | M6: （千円） | N6: （千円） | O6: （千円） | P6: （千円） | Q6: （千円） | R6: （千円） | S6: （千円） | T6: （千円） | U6: （千円） | V6: （千円） | W6: （千円） | X6: （千円） | Y6: （千円） | Z6: （千円） | AA6: （千円） | AB6: （千円） | AC6: （千円） | AD6: （千円） | AE6: （千円） | AF6: （千円） | AG6: （千円） | AH6: （千円） | AI6: （千円） | AJ6: （千円） | AK6: （千円） | AL6: （千円） | AM6: （千円） | AN6: （千円） | AO6: （千円） | AP6: （千円） | AQ6: （千円） | AR6: （千円） | AS6: （千円） | AT6: （千円） | AU6: （千円） | AV6: （千円） | AW6: （千円） | AX6: （千円） | AY6: （千円） | AZ6: （千円） | BA6: （千円） | BB6: （千円） | BC6: （千円） | BD6: （千円） | BE6: （千円） | BF6: （千円） | BG6: （千円） | BH6: （千円） | BI6: （千円） | BJ6: （千円） | BK6: （千円） | BL6: （千円） | BM6: （千円） | BN6: （千円） | BO6: （千円） | BP6: （千円） | BQ6: （千円） | BR6: （千円） | BS6: （千円） | BT6: （千円） | BU6: （千円） | BV6: （千円） | BW6: （千円） | BX6: （千円） | BY6: （千円） | BZ6: （千円） | CA6: （千円） | CB6: （千円） | CC6: （千円） | CD6: （千円） | CE6: （千円） | CF6: （千円） | CG6: （千円） | CH6: （千円） | CI6: （千円） | CJ6: （千円） | CK6: （千円） | CL6: （千円） | CM6: （千円） | CN6: （千円） | CO6: （千円） | CP6: （千円） | CQ6: （千円） | CR6: （千円） | CS6: （千円） | CT6: （千円） | CU6: （千円） | CV6: （千円） | CW6: （千円） | CX6: （千円） | CY6: （千円） | CZ6: （千円） | DA6: （千円） | DB6: （千円） | DC6: （千円） | DD6: （千円） | DE6: （千円） | DF6: （千円） | DG6: （千円） | DH6: （千円） | DI6: （千円） | DJ6: （千円）
A7: 高知県 | B7: 39000 | C7: 合計 | D7: =SUM($D$8:$D$10) -> 0 | E7: =SUM($E$8:$E$10) -> 0 | F7: =SUM($F$8:$F$10) -> 0 | G7: =SUM($G$8:$G$10) -> 0 | H7: =SUM($H$8:$H$10) -> 0 | I7: =SUM($I$8:$I$10) -> 0 | J7: =SUM($J$8:$J$10) -> 0 | K7: =SUM($K$8:$K$10) -> 0 | L7: =SUM($L$8:$L$10) -> 0 | M7: =SUM($M$8:$M$10) -> 0 | N7: =SUM($N$8:$N$10) -> 0 | O7: =SUM($O$8:$O$10) -> 0 | P7: =SUM($P$8:$P$10) -> 0 | Q7: =SUM($Q$8:$Q$10) -> 0 | R7: =SUM($R$8:$R$10) -> 0 | S7: =SUM($S$8:$S$10) -> 0 | T7: =SUM($T$8:$T$10) -> 0 | U7: =SUM($U$8:$U$10) -> 0 | V7: =SUM($V$8:$V$10) -> 0 | W7: =SUM($W$8:$W$10) -> 0 | X7: =SUM($X$8:$X$10) -> 0 | Y7: =SUM($Y$8:$Y$10) -> 0 | Z7: =SUM($Z$8:$Z$10) -> 0 | AA7: =SUM($AA$8:$AA$10) -> 0 | AB7: =SUM($AB$8:$AB$10) -> 0 | AC7: =SUM($AC$8:$AC$10) -> 0 | AD7: =SUM($AD$8:$AD$10) -> 0 | AE7: =SUM($AE$8:$AE$10) -> 0 | AF7: =SUM($AF$8:$AF$10) -> 0 | AG7: =SUM($AG$8:$AG$10) -> 0 | AH7: =SUM($AH$8:$AH$10) -> 0 | AI7: =SUM($AI$8:$AI$10) -> 0 | AJ7: =SUM($AJ$8:$AJ$10) -> 0 | AK7: =SUM($AK$8:$AK$10) -> 0 | AL7: - | AM7: =SUM($AM$8:$AM$10) -> 0 | AN7: =SUM($AN$8:$AN$10) -> 0 | AO7: =SUM($AO$8:$AO$10) -> 0 | AP7: =SUM($AP$8:$AP$10) -> 0 | AQ7: =SUM($AQ$8:$AQ$10) -> 0 | AR7: =SUM($AR$8:$AR$10) -> 0 | AS7: =SUM($AS$8:$AS$10) -> 0 | AT7: =SUM($AT$8:$AT$10) -> 0 | AU7: =SUM($AU$8:$AU$10) -> 0 | AV7: =SUM($AV$8:$AV$10) -> 0 | AW7: =SUM($AW$8:$AW$10) -> 0 | AX7: =SUM($AX$8:$AX$10) -> 0 | AY7: =SUM($AY$8:$AY$10) -> 0 | AZ7: =SUM($AZ$8:$AZ$10) -> 0 | BA7: =SUM($BA$8:$BA$10) -> 0 | BB7: =SUM($BB$8:$BB$10) -> 0 | BC7: - | BD7: =SUM($BD$8:$BD$10) -> 0 | BE7: =SUM($BE$8:$BE$10) -> 0 | BF7: =SUM($BF$8:$BF$10) -> 0 | BG7: =SUM($BG$8:$BG$10) -> 0 | BH7: =SUM($BH$8:$BH$10) -> 0 | BI7: =SUM($BI$8:$BI$10) -> 0 | BJ7: =SUM($BJ$8:$BJ$10) -> 0 | BK7: =SUM($BK$8:$BK$10) -> 0 | BL7: =SUM($BL$8:$BL$10) -> 0 | BM7: =SUM($BM$8:$BM$10) -> 0 | BN7: - | BO7: =SUM($BO$8:$BO$10) -> 0 | BP7: =SUM($BP$8:$BP$10) -> 0 | BQ7: =SUM($BQ$8:$BQ$10) -> 0 | BR7: =SUM($BR$8:$BR$10) -> 0 | BS7: =SUM($BS$8:$BS$10) -> 0 | BT7: =SUM($BT$8:$BT$10) -> 0 | BU7: =SUM($BU$8:$BU$10) -> 0 | BV7: =SUM($BV$8:$BV$10) -> 0 | BW7: =SUM($BW$8:$BW$10) -> 0 | BX7: =SUM($BX$8:$BX$10) -> 0 | BY7: =SUM($BY$8:$BY$10) -> 0 | BZ7: =SUM($BZ$8:$BZ$10) -> 0 | CA7: =SUM($CA$8:$CA$10) -> 0 | CB7: =SUM($CB$8:$CB$10) -> 0 | CC7: =SUM($CC$8:$CC$10) -> 0 | CD7: =SUM($CD$8:$CD$10) -> 0 | CE7: - | CF7: =SUM($CF$8:$CF$10) -> 0 | CG7: =SUM($CG$8:$CG$10) -> 0 | CH7: =SUM($CH$8:$CH$10) -> 0 | CI7: =SUM($CI$8:$CI$10) -> 0 | CJ7: =SUM($CJ$8:$CJ$10) -> 0 | CK7: =SUM($CK$8:$CK$10) -> 0 | CL7: =SUM($CL$8:$CL$10) -> 0 | CM7: =SUM($CM$8:$CM$10) -> 0 | CN7: =SUM($CN$8:$CN$10) -> 0 | CO7: =SUM($CO$8:$CO$10) -> 0 | CP7: - | CQ7: =SUM($CQ$8:$CQ$10) -> 0 | CR7: =SUM($CR$8:$CR$10) -> 0 | CS7: =SUM($CS$8:$CS$10) -> 0 | CT7: =SUM($CT$8:$CT$10) -> 0 | CU7: =SUM($CU$8:$CU$10) -> 0 | CV7: =SUM($CV$8:$CV$10) -> 0 | CW7: =SUM($CW$8:$CW$10) -> 0 | CX7: =SUM($CX$8:$CX$10) -> 0 | CY7: =SUM($CY$8:$CY$10) -> 0 | CZ7: =SUM($CZ$8:$CZ$10) -> 0 | DA7: =SUM($DA$8:$DA$10) -> 0 | DB7: =SUM($DB$8:$DB$10) -> 0 | DC7: =SUM($DC$8:$DC$10) -> 0 | DD7: =SUM($DD$8:$DD$10) -> 0 | DE7: =SUM($DE$8:$DE$10) -> 0 | DF7: =SUM($DF$8:$DF$10) -> 0 | DG7: - | DH7: =SUM($DH$8:$DH$10) -> 0 | DI7: =SUM($DI$8:$DI$10) -> 0 | DJ7: =SUM($DJ$8:$DJ$10) -> 0

Sheet 災害廃棄物事業経費（歳入）
A1: 【災害】廃棄物処理事業経費（市区町村及び一部事務組合・広域連合の合計）【歳入】（平成30年度実績）
A2: 都道府県名 | B2: 地方公共団体コード | C2: 市区町村・一部事務組合・広域連合名 | D2: ごみ | M2: し尿 | V2: 合計
D3: 合計 (特定財源(市区町村分担金を除く)+一般財源) | M3: 合計 (特定財源(市区町村分担金を除く)+一般財源) | V3: 合計 (特定財源(市区町村分担金を除く)+一般財源)
E4: 特定財源 (市区町村分担金を除く) | L4: 一般財源 | N4: 特定財源 (市区町村分担金を除く) | U4: 一般財源 | W4: 特定財源 (市区町村分担金を除く) | AD4: 一般財源
E5: 合計 | F5: 国庫支出金 | G5: 都道府県 支出金 | H5: 地方債 | I5: 使用料及び 手数料 | J5: （市区町村 分担金） | K5: その他 | N5: 合計 | O5: 国庫支出金 | P5: 都道府県 支出金 | Q5: 地方債 | R5: 使用料及び 手数料 | S5: （市区町村 分担金） | T5: その他 | W5: 合計 | X5: 国庫支出金 | Y5: 都道府県 支出金 | Z5: 地方債 | AA5: 使用料及び 手数料 | AB5: （市区町村 分担金） | AC5: その他
D6: （千円） | E6: （千円） | F6: （千円） | G6: （千円） | H6: （千円） | I6: （千円） | J6: （千円） | K6: （千円） | L6: （千円） | M6: （千円） | N6: （千円） | O6: （千円） | P6: （千円） | Q6: （千円） | R6: （千円） | S6: （千円） | T6: （千円） | U6: （千円） | V6: （千円） | W6: （千円） | X6: （千円） | Y6: （千円） | Z6: （千円） | AA6: （千円） | AB6: （千円） | AC6: （千円） | AD6: （千円）
A7: 高知県 | B7: 39000 | C7: 合計 | D7: =SUM($D$8:$D$10) -> 59,298 | E7: =SUM($E$8:$E$10) -> 43,755 | F7: =SUM($F$8:$F$10) -> 28,755 | G7: =SUM($G$8:$G$10) -> 0 | H7: =SUM($H$8:$H$10) -> 15,000 | I7: =SUM($I$8:$I$10) -> 0 | J7: =SUM($J$8:$J$10) -> 0 | K7: =SUM($K$8:$K$10) -> 0 | L7: =SUM($L$8:$L$10) -> 15,543 | M7: =SUM($M$8:$M$10) -> 170 | N7: =SUM($N$8:$N$10) -> 85 | O7: =SUM($O$8:$O$10) -> 85 | P7: =SUM($P$8:$P$10) -> 0 | Q7: =SUM($Q$8:$Q$10) -> 0 | R7: =SUM($R$8:$R$10) -> 0 | S7: =SUM($S$8:$S$10) -> 0 | T7: =SUM($T$8:$T$10) -> 0 | U7: =SUM($U$8:$U$10) -> 85 | V7: =SUM($V$8:$V$10) -> 59,468 | W7: =SUM($W$8:$W$10) -> 43,840 | X7: =SUM($X$8:$X$10) -> 28,840 | Y7: =SUM($Y$8:$Y$10) -> 0 | Z7: =SUM($Z$8:$Z$10) -> 15,000 | AA7: =SUM($AA$8:$AA$10) -> 0 | AB7: =SUM($AB$8:$AB$10) -> 0 | AC7: =SUM($AC$8:$AC$10) -> 0 | AD7: =SUM($AD$8:$AD$10) -> 15,628
A8: 高知県 | B8: 39203 | C8: 安芸市 | D8: =SUM(E8,+L8) -> 480 | E8: 240 | F8: 240 | G8: 0 | H8: 0 | I8: 0 | J8: 0 | K8: 0 | L8: 240 | M8: =SUM(N8,+U8) -> 170 | N8: 85 | O8: 85 | P8: 0 | Q8: 0 | R8: 0 | S8: 0 | T8: 0 | U8: 85 | V8: 650 | W8: 325 | X8: 325 | Y8: 0 | Z8: 0 | AA8: 0 | AB8: 0 | AC8: 0 | AD8: 325
A9: 高知県 | B9: 39208 | C9: 宿毛市 | D9: =SUM(E9,+L9) -> 28,700 | E9: 13,457 | F9: 13,457 | G9: 0 | H9: 0 | I9: 0 | J9: 0 | K9: 0 | L9: 15,243 | M9: =SUM(N9,+U9) -> 0 | N9: 0 | O9: 0 | P9: 0 | Q9: 0 | R9: 0 | S9: 0 | T9: 0 | U9: 0 | V9: 28,700 | W9: 13,457 | X9: 13,457 | Y9: 0 | Z9: 0 | AA9: 0 | AB9: 0 | AC9: 0 | AD9: 15,243
A10: 高知県 | B10: 39424 | C10: 大月町 | D10: =SUM(E10,+L10) -> 30,118 | E10: 30,058 | F10: 15,058 | G10: 0 | H10: 15,000 | I10: 0 | J10: 0 | K10: 0 | L10: 60 | M10: =SUM(N10,+U10) -> 0 | N10: 0 | O10: 0 | P10: 0 | Q10: 0 | R10: 0 | S10: 0 | T10: 0 | U10: 0 | V10: 30,118 | W10: 30,058 | X10: 15,058 | Y10: 0 | Z10: 15,000 | AA10: 0 | AB10: 0 | AC10: 0 | AD10: 60

Sheet 災害廃棄物事業経費（歳出）
A1: 【災害】廃棄物処理事業経費（市区町村及び一部事務組合・広域連合の合計）【歳出】（平成30年度実績）
A2: 都道府県名 | B2: 地方公共団体コード | C2: 市区町村・一部事務組合・広域連合名 | D2: ごみ（建設改良費＋処理維持管理費＋その他）（組合分担金を除く） | AF2: し尿（建設改良費＋処理維持管理費＋その他）（組合分担金を除く） | BH2: 合計（建設改良費＋処理維持管理費＋その他）（組合分担金を除く）
D3: 建設改良費 (工事費+調査費)(組合分担金を除く) | L3: 処理及び維持管理費 (人件費+処理費+車両購入費+委託費+調査研究費)(組合分担金を除く) | AD3: その他 | AE3: 合計 | AF3: 建設改良費 (工事費+調査費)(組合分担金を除く) | AN3: 処理及び維持管理費 (人件費+処理費+車両購入費+委託費+調査研究費)(組合分担金を除く) | BF3: その他 | BG3: 合計 | BH3: 建設改良費 (工事費+調査費)(組合分担金を除く) | BP3: 処理及び維持管理費 (人件費+処理費+車両購入費+委託費+調査研究費)(組合分担金を除く) | CH3: その他 | CI3: 合計
D4: 合計 | E4: 工事費 (中間処理施設+最終処分場+その他) | J4: 調査費 | K4: （建設改良費組合分担金） | L4: 合計 | M4: 人件費（一般職＋収集運搬＋中間処理＋最終処分） | R4: 処理費 (収集運搬費+中間処理費+最終処分費) | V4: 車両等購入費 | W4: 委託費 (収集運搬費+中間処理費+最終処分費+その他) | AB4: (組合分担金) | AC4: 調査研究費 | AF4: 合計 | AG4: 工事費 (中間処理施設+最終処分場+その他) | AL4: 調査費 | AM4: （建設改良費組合分担金） | AN4: 合計 | AO4: 人件費（一般職＋収集運搬＋中間処理＋最終処分） | AT4: 処理費 (収集運搬費+中間処理費+最終処分費) | AX4: 車両等購入費 | AY4: 委託費 (収集運搬費+中間処理費+最終処分費+その他) | BD4: (組合分担金) | BE4: 調査研究費 | BH4: 合計 | BI4: 工事費 (中間処理施設+最終処分場+その他) | BN4: 調査費 | BO4: （建設改良費組合分担金） | BP4: 合計 | BQ4: 人件費（一般職＋収集運搬＋中間処理＋最終処分） | BV4: 処理費 (収集運搬費+中間処理費+最終処分費) | BZ4: 車両等購入費 | CA4: 委託費 (収集運搬費+中間処理費+最終処分費+その他) | CF4: (組合分担金) | CG4: 調査研究費
E5: 合計 | F5: 収集運搬施設 | G5: 中間処理施設 | H5: 最終処分場 | I5: その他 | M5: 合計 | N5: 一般職 | O5: 収集運搬 | P5: 中間処理 | Q5: 最終処分 | R5: 合計 | S5: 収集運搬費 | T5: 中間処理費 | U5: 最終処分費 | W5: 合計 | X5: 収集運搬費 | Y5: 中間処理費 | Z5: 最終処分費 | AA5: その他 | AG5: 合計 | AH5: 収集運搬施設 | AI5: 中間処理施設 | AJ5: 最終処分場 | AK5: その他 | AO5: 合計 | AP5: 一般職 | AQ5: 収集運搬 | AR5: 中間処理 | AS5: 最終処分 | AT5: 合計 | AU5: 収集運搬費 | AV5: 中間処理費 | AW5: 最終処分費 | AY5: 合計 | AZ5: 収集運搬費 | BA5: 中間処理費 | BB5: 最終処分費 | BC5: その他 | BI5: 合計 | BJ5: 収集運搬施設 | BK5: 中間処理施設 | BL5: 最終処分場 | BM5: その他 | BQ5: 合計 | BR5: 一般職 | BS5: 収集運搬 | BT5: 中間処理 | BU5: 最終処分 | BV5: 合計 | BW5: 収集運搬費 | BX5: 中間処理費 | BY5: 最終処分費 | CA5: 合計 | CB5: 収集運搬費 | CC5: 中間処理費 | CD5: 最終処分費 | CE5: その他
D6: （千円） | E6: （千円） | F6: （千円） | G6: （千円） | H6: （千円） | I6: （千円） | J6: （千円） | K6: （千円） | L6: （千円） | M6: （千円） | N6: （千円） | O6: （千円） | P6: （千円） | Q6: （千円） | R6: （千円） | S6: （千円） | T6: （千円） | U6: （千円） | V6: （千円） | W6: （千円） | X6: （千円） | Y6: （千円） | Z6: （千円） | AA6: （千円） | AB6: （千円） | AC6: （千円） | AD6: （千円） | AE6: （千円） | AF6: （千円） | AG6: （千円） | AH6: （千円） | AI6: （千円） | AJ6: （千円） | AK6: （千円） | AL6: （千円） | AM6: （千円） | AN6: （千円） | AO6: （千円） | AP6: （千円） | AQ6: （千円） | AR6: （千円） | AS6: （千円） | AT6: （千円） | AU6: （千円） | AV6: （千円） | AW6: （千円） | AX6: （千円） | AY6: （千円） | AZ6: （千円） | BA6: （千円） | BB6: （千円） | BC6: （千円） | BD6: （千円） | BE6: （千円） | BF6: （千円） | BG6: （千円） | BH6: （千円） | BI6: （千円） | BJ6: （千円） | BK6: （千円） | BL6: （千円） | BM6: （千円） | BN6: （千円） | BO6: （千円） | BP6: （千円） | BQ6: （千円） | BR6: （千円） | BS6: （千円） | BT6: （千円） | BU6: （千円） | BV6: （千円） | BW6: （千円） | BX6: （千円） | BY6: （千円） | BZ6: （千円） | CA6: （千円） | CB6: （千円） | CC6: （千円） | CD6: （千円） | CE6: （千円） | CF6: （千円） | CG6: （千円） | CH6: （千円） | CI6: （千円）
A7: 高知県 | B7: 39000 | C7: 合計 | D7: =SUM($D$8:$D$10) -> 21,682 | E7: =SUM($E$8:$E$10) -> 21,682 | F7: =SUM($F$8:$F$10) -> 0 | G7: =SUM($G$8:$G$10) -> 0 | H7: =SUM($H$8:$H$10) -> 0 | I7: =SUM($I$8:$I$10) -> 21,682 | J7: =SUM($J$8:$J$10) -> 0 | K7: =SUM($K$8:$K$10) -> 0 | L7: =SUM($L$8:$L$10) -> 35,318 | M7: =SUM($M$8:$M$10) -> 0 | N7: =SUM($N$8:$N$10) -> 0 | O7: =SUM($O$8:$O$10) -> 0 | P7: =SUM($P$8:$P$10) -> 0 | Q7: =SUM($Q$8:$Q$10) -> 0 | R7: =SUM($R$8:$R$10) -> 8,909 | S7: =SUM($S$8:$S$10) -> 3,780 | T7: =SUM($T$8:$T$10) -> 0 | U7: =SUM($U$8:$U$10) -> 5,129 | V7: =SUM($V$8:$V$10) -> 0 | W7: =SUM($W$8:$W$10) -> 26,409 | X7: =SUM($X$8:$X$10) -> 2,808 | Y7: =SUM($Y$8:$Y$10) -> 480 | Z7: =SUM($Z$8:$Z$10) -> 0 | AA7: =SUM($AA$8:$AA$10) -> 23,121 | AB7: =SUM($AB$8:$AB$10) -> 0 | AC7: =SUM($AC$8:$AC$10) -> 0 | AD7: =SUM($AD$8:$AD$10) -> 2,298 | AE7: =SUM($AE$8:$AE$10) -> 59,298 | AF7: =SUM($AF$8:$AF$10) -> 0 | AG7: =SUM($AG$8:$AG$10) -> 0 | AH7: =SUM($AH$8:$AH$10) -> 0 | AI7: =SUM($AI$8:$AI$10) -> 0 | AJ7: =SUM($AJ$8:$AJ$10) -> 0 | AK7: =SUM($AK$8:$AK$10) -> 0 | AL7: =SUM($AL$8:$AL$10) -> 0 | AM7: =SUM($AM$8:$AM$10) -> 0 | AN7: =SUM($AN$8:$AN$10) -> 170 | AO7: =SUM($AO$8:$AO$10) -> 0 | AP7: =SUM($AP$8:$AP$10) -> 0 | AQ7: =SUM($AQ$8:$AQ$10) -> 0 | AR7: =SUM($AR$8:$AR$10) -> 0 | AS7: =SUM($AS$8:$AS$10) -> 0 | AT7: =SUM($AT$8:$AT$10) -> 170 | AU7: =SUM($AU$8:$AU$10) -> 0 | AV7: =SUM($AV$8:$AV$10) -> 170 | AW7: =SUM($AW$8:$AW$10) -> 0 | AX7: =SUM($AX$8:$AX$10) -> 0 | AY7: =SUM($AY$8:$AY$10) -> 0 | AZ7: =SUM($AZ$8:$AZ$10) -> 0 | BA7: =SUM($BA$8:$BA$10) -> 0 | BB7: =SUM($BB$8:$BB$10) -> 0 | BC7: =SUM($BC$8:$BC$10) -> 0 | BD7: =SUM($BD$8:$BD$10) -> 0 | BE7: =SUM($BE$8:$BE$10) -> 0 | BF7: =SUM($BF$8:$BF$10) -> 0 | BG7: =SUM($BG$8:$BG$10) -> 170 | BH7: =SUM($BH$8:$BH$10) -> 21,682 | BI7: =SUM($BI$8:$BI$10) -> 21,682 | BJ7: =SUM($BJ$8:$BJ$10) -> 0 | BK7: =SUM($BK$8:$BK$10) -> 0 | BL7: =SUM($BL$8:$BL$10) -> 0 | BM7: =SUM($BM$8:$BM$10) -> 21,682 | BN7: =SUM($BN$8:$BN$10) -> 0 | BO7: =SUM($BO$8:$BO$10) -> 0 | BP7: =SUM($BP$8:$BP$10) -> 35,488 | BQ7: =SUM($BQ$8:$BQ$10) -> 0 | BR7: =SUM($BR$8:$BR$10) -> 0 | BS7: =SUM($BS$8:$BS$10) -> 0 | BT7: =SUM($BT$8:$BT$10) -> 0 | BU7: =SUM($BU$8:$BU$10) -> 0 | BV7: =SUM($BV$8:$BV$10) -> 9,079 | BW7: =SUM($BW$8:$BW$10) -> 3,780 | BX7: =SUM($BX$8:$BX$10) -> 170 | BY7: =SUM($BY$8:$BY$10) -> 5,129 | BZ7: =SUM($BZ$8:$BZ$10) -> 0 | CA7: =SUM($CA$8:$CA$10) -> 26,409 | CB7: =SUM($CB$8:$CB$10) -> 2,808 | CC7: =SUM($CC$8:$CC$10) -> 480 | CD7: =SUM($CD$8:$CD$10) -> 0 | CE7: =SUM($CE$8:$CE$10) -> 23,121 | CF7: =SUM($CF$8:$CF$10) -> 0 | CG7: =SUM($CG$8:$CG$10) -> 0 | CH7: =SUM($CH$8:$CH$10) -> 2,298 | CI7: =SUM($CI$8:$CI$10) -> 59,468
A8: 高知県 | B8: 39203 | C8: 安芸市 | D8: 0 | E8: 0 | F8: 0 | G8: 0 | H8: 0 | I8: 0 | J8: 0 | K8: =組合分担金内訳!D8 -> 0 | L8: 480 | M8: 0 | N8: 0 | O8: 0 | P8: 0 | Q8: 0 | R8: 0 | S8: 0 | T8: 0 | U8: 0 | V8: 0 | W8: 480 | X8: 0 | Y8: 480 | Z8: 0 | AA8: 0 | AB8: =組合分担金内訳!E8 -> 0 | AC8: 0 | AD8: 0 | AE8: 480 | AF8: 0 | AG8: 0 | AH8: 0 | AI8: 0 | AJ8: 0 | AK8: 0 | AL8: 0 | AM8: =組合分担金内訳!G8 -> 0 | AN8: 170 | AO8: 0 | AP8: 0 | AQ8: 0 | AR8: 0 | AS8: 0 | AT8: 170 | AU8: 0 | AV8: 170 | AW8: 0 | AX8: 0 | AY8: 0 | AZ8: 0 | BA8: 0 | BB8: 0 | BC8: 0 | BD8: =組合分担金内訳!H8 -> 0 | BE8: 0 | BF8: 0 | BG8: 170 | BH8: =SUM(D8,AF8) -> 0 | BI8: =SUM(E8,AG8) -> 0 | BJ8: =SUM(F8,AH8) -> 0 | BK8: =SUM(G8,AI8) -> 0 | BL8: =SUM(H8,AJ8) -> 0 | BM8: =SUM(I8,AK8) -> 0 | BN8: =SUM(J8,AL8) -> 0 | BO8: =SUM(K8,AM8) -> 0 | BP8: =SUM(L8,AN8) -> 650 | BQ8: =SUM(M8,AO8) -> 0 | BR8: =SUM(N8,AP8) -> 0 | BS8: =SUM(O8,AQ8) -> 0 | BT8: =SUM(P8,AR8) -> 0 | BU8: =SUM(Q8,AS8) -> 0 | BV8: =SUM(R8,AT8) -> 170 | BW8: =SUM(S8,AU8) -> 0 | BX8: =SUM(T8,AV8) -> 170 | BY8: =SUM(U8,AW8) -> 0 | BZ8: =SUM(V8,AX8) -> 0 | CA8: =SUM(W8,AY8) -> 480 | CB8: =SUM(X8,AZ8) -> 0 | CC8: =SUM(Y8,BA8) -> 480 | CD8: =SUM(Z8,BB8) -> 0 | CE8: =SUM(AA8,BC8) -> 0 | CF8: =SUM(AB8,BD8) -> 0 | CG8: =SUM(AC8,BE8) -> 0 | CH8: =SUM(AD8,BF8) -> 0 | CI8: =SUM(AE8,BG8) -> 650
A9: 高知県 | B9: 39208 | C9: 宿毛市 | D9: 21,682 | E9: 21,682 | F9: 0 | G9: 0 | H9: 0 | I9: 21,682 | J9: 0 | K9: =組合分担金内訳!D9 -> 0 | L9: 6,016 | M9: 0 | N9: 0 | O9: 0 | P9: 0 | Q9: 0 | R9: 6,016 | S9: 3,780 | T9: 0 | U9: 2,236 | V9: 0 | W9: 0 | X9: 0 | Y9: 0 | Z9: 0 | AA9: 0 | AB9: =組合分担金内訳!E9 -> 0 | AC9: 0 | AD9: 1,002 | AE9: 28,700 | AF9: 0 | AG9: 0 | AH9: 0 | AI9: 0 | AJ9: 0 | AK9: 0 | AL9: 0 | AM9: =組合分担金内訳!G9 -> 0 | AN9: 0 | AO9: 0 | AP9: 0 | AQ9: 0 | AR9: 0 | AS9: 0 | AT9: 0 | AU9: 0 | AV9: 0 | AW9: 0 | AX9: 0 | AY9: 0 | AZ9: 0 | BA9: 0 | BB9: 0 | BC9: 0 | BD9: =組合分担金内訳!H9 -> 0 | BE9: 0 | BF9: 0 | BG9: 0 | BH9: 21,682 | BI9: 21,682 | BJ9: 0 | BK9: 0 | BL9: 0 | BM9: 21,682 | BN9: 0 | BO9: 0 | BP9: 6,016 | BQ9: 0 | BR9: 0 | BS9: 0 | BT9: 0 | BU9: 0 | BV9: 6,016 | BW9: 3,780 | BX9: 0 | BY9: 2,236 | BZ9: 0 | CA9: 0 | CB9: 0 | CC9: 0 | CD9: 0 | CE9: 0 | CF9: 0 | CG9: 0 | CH9: 1,002 | CI9: 28,700
A10: 高知県 | B10: 39424 | C10: 大月町 | D10: 0 | E10: 0 | F10: 0 | G10: 0 | H10: 0 | I10: 0 | J10: 0 | K10: =組合分担金内訳!D10 -> 0 | L10: 28,822 | M10: 0 | N10: 0 | O10: 0 | P10: 0 | Q10: 0 | R10: 2,893 | S10: 0 | T10: 0 | U10: 2,893 | V10: 0 | W10: 25,929 | X10: 2,808 | Y10: 0 | Z10: 0 | AA10: 23,121 | AB10: =組合分担金内訳!E10 -> 0 | AC10: 0 | AD10: 1,296 | AE10: 30,118 | AF10: 0 | AG10: 0 | AH10: 0 | AI10: 0 | AJ10: 0 | AK10: 0 | AL10: 0 | AM10: =組合分担金内訳!G10 -> 0 | AN10: 0 | AO10: 0 | AP10: 0 | AQ10: 0 | AR10: 0 | AS10: 0 | AT10: 0 | AU10: 0 | AV10: 0 | AW10: 0 | AX10: 0 | AY10: 0 | AZ10: 0 | BA10: 0 | BB10: 0 | BC10: 0 | BD10: =組合分担金内訳!H10 -> 0 | BE10: 0 | BF10: 0 | BG10: 0 | BH10: 0 | BI10: 0 | BJ10: 0 | BK10: 0 | BL10: 0 | BM10: 0 | BN10: 0 | BO10: 0 | BP10: 28,822 | BQ10: 0 | BR10: 0 | BS10: 0 | BT10: 0 | BU10: 0 | BV10: 2,893 | BW10: 0 | BX10: 0 | BY10: 2,893 | BZ10: 0 | CA10: 25,929 | CB10: 2,808 | CC10: 0 | CD10: 0 | CE10: 23,121 | CF10: 0 | CG10: 0 | CH10: 1,296 | CI10: 30,118

Sheet 組合分担金内訳
A1: 【災害】廃棄物処理事業経費【分担金の合計】（平成30年度実績）
A2: 都道府県名 | B2: 地方公共団体コード | C2: 市区町村名 | D2: 合計（広域団体１+広域団体２+広域団体３+広域団体４+広域団体５+広域団体６） | J2: 広域団体１ | R2: 広域団体２ | Z2: 広域団体３ | AH2: 広域団体４ | AP2: 広域団体５ | AX2: 広域団体６
D4: ごみ | G4: し尿 | J4: 広域団体ｺｰﾄﾞ | K4: 一部事務組合・広域連合名 | L4: ごみ | O4: し尿 | R4: 広域団体ｺｰﾄﾞ | S4: 一部事務組合・広域連合名 | T4: ごみ | W4: し尿 | Z4: 広域団体ｺｰﾄﾞ | AA4: 一部事務組合・広域連合名 | AB4: ごみ | AE4: し尿 | AH4: 広域団体ｺｰﾄﾞ | AI4: 一部事務組合・広域連合名 | AJ4: ごみ | AM4: し尿 | AP4: 広域団体ｺｰﾄﾞ | AQ4: 一部事務組合・広域連合名 | AR4: ごみ | AU4: し尿 | AX4: 広域団体ｺｰﾄﾞ | AY4: 一部事務組合・広域連合名 | AZ4: ごみ | BC4: し尿
D5: 建設・改良費 | E5: 処理及び 維持管理費 | F5: 合計 | G5: 建設・改良費 | H5: 処理及び 維持管理費 | I5: 合計 | L5: 建設・改良費 | M5: 処理及び 維持管理費 | N5: 小計 | O5: 建設・改良費 | P5: 処理及び 維持管理費 | Q5: 小計 | T5: 建設・改良費 | U5: 処理及び 維持管理費 | V5: 小計 | W5: 建設・改良費 | X5: 処理及び 維持管理費 | Y5: 小計 | AB5: 建設・改良費 | AC5: 処理及び 維持管理費 | AD5: 小計 | AE5: 建設・改良費 | AF5: 処理及び 維持管理費 | AG5: 小計 | AJ5: 建設・改良費 | AK5: 処理及び 維持管理費 | AL5: 小計 | AM5: 建設・改良費 | AN5: 処理及び 維持管理費 | AO5: 小計 | AR5: 建設・改良費 | AS5: 処理及び 維持管理費 | AT5: 小計 | AU5: 建設・改良費 | AV5: 処理及び 維持管理費 | AW5: 小計 | AZ5: 建設・改良費 | BA5: 処理及び 維持管理費 | BB5: 小計 | BC5: 建設・改良費 | BD5: 処理及び 維持管理費 | BE5: 小計
D6: （千円） | E6: （千円） | F6: （千円） | G6: （千円） | H6: （千円） | I6: （千円） | L6: （千円） | M6: （千円） | N6: （千円） | O6: （千円） | P6: （千円） | Q6: （千円） | T6: （千円） | U6: （千円） | V6: （千円） | W6: （千円） | X6: （千円） | Y6: （千円） | AB6: （千円） | AC6: （千円） | AD6: （千円） | AE6: （千円） | AF6: （千円） | AG6: （千円） | AJ6: （千円） | AK6: （千円） | AL6: （千円） | AM6: （千円） | AN6: （千円） | AO6: （千円） | AR6: （千円） | AS6: （千円） | AT6: （千円） | AU6: （千円） | AV6: （千円） | AW6: （千円） | AZ6: （千円） | BA6: （千円） | BB6: （千円） | BC6: （千円） | BD6: （千円） | BE6: （千円）
A7: 高知県 | B7: 39000 | C7: 合計 | D7: =SUM($D$8:$D$10) -> 0 | E7: =SUM($E$8:$E$10) -> 0 | F7: =SUM($F$8:$F$10) -> 0 | G7: =SUM($G$8:$G$10) -> 0 | H7: =SUM($H$8:$H$10) -> 0 | I7: =SUM($I$8:$I$10) -> 0 | J7: =COUNTIF($J$8:$J$10,"<>") - COUNTIF($J$8:$J$10,"< >") -> 0 | K7: =COUNTIF($K$8:$K$10,"<>") - COUNTIF($K$8:$K$10,"< >") -> 0 | L7: =SUM($L$8:$L$10) -> 0 | M7: =SUM($M$8:$M$10) -> 0 | N7: =SUM($N$8:$N$10) -> 0 | O7: =SUM($O$8:$O$10) -> 0 | P7: =SUM($P$8:$P$10) -> 0 | Q7: =SUM($Q$8:$Q$10) -> 0 | R7: =COUNTIF($R$8:$R$10,"<>") - COUNTIF($R$8:$R$10,"< >") -> 0 | S7: =COUNTIF($S$8:$S$10,"<>") - COUNTIF($S$8:$S$10,"< >") -> 0 | T7: =SUM($T$8:$T$10) -> 0 | U7: =SUM($U$8:$U$10) -> 0 | V7: =SUM($V$8:$V$10) -> 0 | W7: =SUM($W$8:$W$10) -> 0 | X7: =SUM($X$8:$X$10) -> 0 | Y7: =SUM($Y$8:$Y$10) -> 0 | Z7: =COUNTIF($Z$8:$Z$10,"<>") - COUNTIF($Z$8:$Z$10,"< >") -> 0 | AA7: =COUNTIF($AA$8:$AA$10,"<>") - COUNTIF($AA$8:$AA$10,"< >") -> 0 | AB7: =SUM($AB$8:$AB$10) -> 0 | AC7: =SUM($AC$8:$AC$10) -> 0 | AD7: =SUM($AD$8:$AD$10) -> 0 | AE7: =SUM($AE$8:$AE$10) -> 0 | AF7: =SUM($AF$8:$AF$10) -> 0 | AG7: =SUM($AG$8:$AG$10) -> 0 | AH7: =COUNTIF($AH$8:$AH$10,"<>") - COUNTIF($AH$8:$AH$10,"< >") -> 0 | AI7: =COUNTIF($AI$8:$AI$10,"<>") - COUNTIF($AI$8:$AI$10,"< >") -> 0 | AJ7: =SUM($AJ$8:$AJ$10) -> 0 | AK7: =SUM($AK$8:$AK$10) -> 0 | AL7: =SUM($AL$8:$AL$10) -> 0 | AM7: =SUM($AM$8:$AM$10) -> 0 | AN7: =SUM($AN$8:$AN$10) -> 0 | AO7: =SUM($AO$8:$AO$10) -> 0 | AP7: =COUNTIF($AP$8:$AP$10,"<>") - COUNTIF($AP$8:$AP$10,"< >") -> 0 | AQ7: =COUNTIF($AQ$8:$AQ$10,"<>") - COUNTIF($AQ$8:$AQ$10,"< >") -> 0 | AR7: =SUM($AR$8:$AR$10) -> 0 | AS7: =SUM($AS$8:$AS$10) -> 0 | AT7: =SUM($AT$8:$AT$10) -> 0 | AU7: =SUM($AU$8:$AU$10) -> 0 | AV7: =SUM($AV$8:$AV$10) -> 0 | AW7: =SUM($AW$8:$AW$10) -> 0 | AX7: =COUNTIF($AX$8:$AX$10,"<>") - COUNTIF($AX$8:$AX$10,"< >") -> 0 | AY7: =COUNTIF($AY$8:$AY$10,"<>") - COUNTIF($AY$8:$AY$10,"< >") -> 0 | AZ7: =SUM($AZ$8:$AZ$10) -> 0 | BA7: =SUM($BA$8:$BA$10) -> 0 | BB7: =SUM($BB$8:$BB$10) -> 0 | BC7: =SUM($BC$8:$BC$10) -> 0 | BD7: =SUM($BD$8:$BD$10) -> 0 | BE7: =SUM($BE$8:$BE$10) -> 0
A8: 高知県 | B8: 39203 | C8: 安芸市 | D8: =SUM(L8,T8,AB8,AJ8,AR8,AZ8) -> 0 | E8: =SUM(M8,U8,AC8,AK8,AS8,BA8) -> 0 | F8: =SUM(D8:E8) -> 0 | G8: =SUM(O8,W8,AE8,AM8,AU8,BC8) -> 0 | H8: =SUM(P8,X8,AF8,AN8,AV8,BD8) -> 0 | I8: =SUM(G8:H8) -> 0 | L8: 0 | M8: 0 | N8: =SUM(L8,+M8) -> 0 | O8: 0 | P8: 0 | Q8: =SUM(O8,+P8) -> 0 | T8: 0 | U8: 0 | V8: 0 | W8: 0 | X8: 0 | Y8: 0 | AB8: 0 | AC8: 0 | AD8: 0 | AE8: 0 | AF8: 0 | AG8: =SUM(AE8,+AF8) -> 0 | AJ8: 0 | AK8: 0 | AL8: =SUM(AJ8,+AK8) -> 0 | AM8: 0 | AN8: 0 | AO8: =SUM(AM8,+AN8) -> 0 | AR8: 0 | AS8: 0 | AT8: =SUM(AR8,+AS8) -> 0 | AU8: 0 | AV8: 0 | AW8: =SUM(AU8,+AV8) -> 0 | AZ8: 0 | BA8: 0 | BB8: =SUM(AZ8,BA8) -> 0 | BC8: 0 | BD8: 0 | BE8: =SUM(BC8,+BD8) -> 0
A9: 高知県 | B9: 39208 | C9: 宿毛市 | D9: =SUM(L9,T9,AB9,AJ9,AR9,AZ9) -> 0 | E9: =SUM(M9,U9,AC9,AK9,AS9,BA9) -> 0 | F9: =SUM(D9:E9) -> 0 | G9: =SUM(O9,W9,AE9,AM9,AU9,BC9) -> 0 | H9: =SUM(P9,X9,AF9,AN9,AV9,BD9) -> 0 | I9: =SUM(G9:H9) -> 0 | L9: 0 | M9: 0 | N9: =SUM(L9,+M9) -> 0 | O9: 0 | P9: 0 | Q9: =SUM(O9,+P9) -> 0 | T9: 0 | U9: 0 | V9: 0 | W9: 0 | X9: 0 | Y9: 0 | AB9: 0 | AC9: 0 | AD9: 0 | AE9: 0 | AF9: 0 | AG9: =SUM(AE9,+AF9) -> 0 | AJ9: 0 | AK9: 0 | AL9: =SUM(AJ9,+AK9) -> 0 | AM9: 0 | AN9: 0 | AO9: =SUM(AM9,+AN9) -> 0 | AR9: 0 | AS9: 0 | AT9: =SUM(AR9,+AS9) -> 0 | AU9: 0 | AV9: 0 | AW9: =SUM(AU9,+AV9) -> 0 | AZ9: 0 | BA9: 0 | BB9: =SUM(AZ9,BA9) -> 0 | BC9: 0 | BD9: 0 | BE9: =SUM(BC9,+BD9) -> 0
A10: 高知県 | B10: 39424 | C10: 大月町 | D10: =SUM(L10,T10,AB10,AJ10,AR10,AZ10) -> 0 | E10: =SUM(M10,U10,AC10,AK10,AS10,BA10) -> 0 | F10: =SUM(D10:E10) -> 0 | G10: =SUM(O10,W10,AE10,AM10,AU10,BC10) -> 0 | H10: =SUM(P10,X10,AF10,AN10,AV10,BD10) -> 0 | I10: =SUM(G10:H10) -> 0 | L10: 0 | M10: 0 | N10: =SUM(L10,+M10) -> 0 | O10: 0 | P10: 0 | Q10: =SUM(O10,+P10) -> 0 | T10: 0 | U10: 0 | V10: 0 | W10: 0 | X10: 0 | Y10: 0 | AB10: 0 | AC10: 0 | AD10: 0 | AE10: 0 | AF10: 0 | AG10: =SUM(AE10,+AF10) -> 0 | AJ10: 0 | AK10: 0 | AL10: =SUM(AJ10,+AK10) -> 0 | AM10: 0 | AN10: 0 | AO10: =SUM(AM10,+AN10) -> 0 | AR10: 0 | AS10: 0 | AT10: =SUM(AR10,+AS10) -> 0 | AU10: 0 | AV10: 0 | AW10: =SUM(AU10,+AV10) -> 0 | AZ10: 0 | BA10: 0 | BB10: =SUM(AZ10,BA10) -> 0 | BC10: 0 | BD10: 0 | BE10: =SUM(BC10,+BD10) -> 0

Sheet 市町村分担金内訳
A1: 【災害】廃棄物処理事業経費【市区町村分担金の合計】（平成30年度実績）
A2: 都道府県名 | B2: 地方公共団体コード | C2: 一部事務組合・広域連合名 | D2: 合計（構成市区町村1+～+構成市区町村30） | F2: 構成市区町村1 | J2: 構成市区町村2 | N2: 構成市区町村3 | R2: 構成市区町村4 | V2: 構成市区町村5 | Z2: 構成市区町村6 | AD2: 構成市区町村7 | AH2: 構成市区町村8 | AL2: 構成市区町村9 | AP2: 構成市区町村10 | AT2: 構成市区町村11 | AX2: 構成市区町村12 | BB2: 構成市区町村13 | BF2: 構成市区町村14 | BJ2: 構成市区町村15 | BN2: 構成市区町村16 | BR2: 構成市区町村17 | BV2: 構成市区町村18 | BZ2: 構成市区町村19 | CD2: 構成市区町村20 | CH2: 構成市区町村21 | CL2: 構成市区町村22 | CP2: 構成市区町村23 | CT2: 構成市区町村24 | CX2: 構成市区町村25 | DB2: 構成市区町村26 | DF2: 構成市区町村27 | DJ2: 構成市区町村28 | DN2: 構成市区町村29 | DR2: 構成市区町村30
D4: ごみ | E4: し尿 | F4: 市区町村 コード | G4: 市区町村名 | H4: ごみ | I4: し尿 | J4: 市区町村 コード | K4: 市区町村名 | L4: ごみ | M4: し尿 | N4: 市区町村 コード | O4: 市区町村名 | P4: ごみ | Q4: し尿 | R4: 市区町村 コード | S4: 市区町村名 | T4: ごみ | U4: し尿 | V4: 市区町村 コード | W4: 市区町村名 | X4: ごみ | Y4: し尿 | Z4: 市区町村 コード | AA4: 市区町村名 | AB4: ごみ | AC4: し尿 | AD4: 市区町村 コード | AE4: 市区町村名 | AF4: ごみ | AG4: し尿 | AH4: 市区町村 コード | AI4: 市区町村名 | AJ4: ごみ | AK4: し尿 | AL4: 市区町村 コード | AM4: 市区町村名 | AN4: ごみ | AO4: し尿 | AP4: 市区町村 コード | AQ4: 市区町村名 | AR4: ごみ | AS4: し尿 | AT4: 市区町村 コード | AU4: 市区町村名 | AV4: ごみ | AW4: し尿 | AX4: 市区町村 コード | AY4: 市区町村名 | AZ4: ごみ | BA4: し尿 | BB4: 市区町村 コード | BC4: 市区町村名 | BD4: ごみ | BE4: し尿 | BF4: 市区町村 コード | BG4: 市区町村名 | BH4: ごみ | BI4: し尿 | BJ4: 市区町村 コード | BK4: 市区町村名 | BL4: ごみ | BM4: し尿 | BN4: 市区町村 コード | BO4: 市区町村名 | BP4: ごみ | BQ4: し尿 | BR4: 市区町村 コード | BS4: 市区町村名 | BT4: ごみ | BU4: し尿 | BV4: 市区町村 コード | BW4: 市区町村名 | BX4: ごみ | BY4: し尿 | BZ4: 市区町村 コード | CA4: 市区町村名 | CB4: ごみ | CC4: し尿 | CD4: 市区町村 コード | CE4: 市区町村名 | CF4: ごみ | CG4: し尿 | CH4: 市区町村 コード | CI4: 市区町村名 | CJ4: ごみ | CK4: し尿 | CL4: 市区町村 コード | CM4: 市区町村名 | CN4: ごみ | CO4: し尿 | CP4: 市区町村 コード | CQ4: 市区町村名 | CR4: ごみ | CS4: し尿 | CT4: 市区町村 コード | CU4: 市区町村名 | CV4: ごみ | CW4: し尿 | CX4: 市区町村 コード | CY4: 市区町村名 | CZ4: ごみ | DA4: し尿 | DB4: 市区町村 コード | DC4: 市区町村名 | DD4: ごみ | DE4: し尿 | DF4: 市区町村 コード | DG4: 市区町村名 | DH4: ごみ | DI4: し尿 | DJ4: 市区町村 コード | DK4: 市区町村名 | DL4: ごみ | DM4: し尿 | DN4: 市区町村 コード | DO4: 市区町村名 | DP4: ごみ | DQ4: し尿 | DR4: 市区町村 コード | DS4: 市区町村名 | DT4: ごみ | DU4: し尿
D6: （千円） | E6: （千円） | H6: （千円） | I6: （千円） | L6: （千円） | M6: （千円） | P6: （千円） | Q6: （千円） | T6: （千円） | U6: （千円） | X6: （千円） | Y6: （千円） | AB6: （千円） | AC6: （千円） | AF6: （千円） | AG6: （千円） | AJ6: （千円） | AK6: （千円） | AN6: （千円） | AO6: （千円） | AR6: （千円） | AS6: （千円） | AV6: （千円） | AW6: （千円） | AZ6: （千円） | BA6: （千円） | BD6: （千円） | BE6: （千円） | BH6: （千円） | BI6: （千円） | BL6: （千円） | BM6: （千円） | BP6: （千円） | BQ6: （千円） | BT6: （千円） | BU6: （千円） | BX6: （千円） | BY6: （千円） | CB6: （千円） | CC6: （千円） | CF6: （千円） | CG6: （千円） | CJ6: （千円） | CK6: （千円） | CN6: （千円） | CO6: （千円） | CR6: （千円） | CS6: （千円） | CV6: （千円） | CW6: （千円） | CZ6: （千円） | DA6: （千円） | DD6: （千円） | DE6: （千円） | DH6: （千円） | DI6: （千円） | DL6: （千円） | DM6: （千円） | DP6: （千円） | DQ6: （千円） | DT6: （千円） | DU6: （千円）
A7: 高知県 | B7: 39000 | C7: 合計 | D7: =SUM($D$8:$D$10) -> 0 | E7: =SUM($E$8:$E$10) -> 0 | F7: =COUNTIF($F$8:$F$10,"<>") - COUNTIF($F$8:$F$10,"< >") -> 0 | G7: =COUNTIF($G$8:$G$10,"<>") - COUNTIF($G$8:$G$10,"< >") -> 0 | H7: =SUM($H$8:$H$10) -> 0 | I7: =SUM($I$8:$I$10) -> 0 | J7: =COUNTIF($J$8:$J$10,"<>") - COUNTIF($J$8:$J$10,"< >") -> 0 | K7: =COUNTIF($K$8:$K$10,"<>") - COUNTIF($K$8:$K$10,"< >") -> 0 | L7: =SUM($L$8:$L$10) -> 0 | M7: =SUM($M$8:$M$10) -> 0 | N7: =COUNTIF($N$8:$N$10,"<>") - COUNTIF($N$8:$N$10,"< >") -> 0 | O7: =COUNTIF($O$8:$O$10,"<>") - COUNTIF($O$8:$O$10,"< >") -> 0 | P7: =SUM($P$8:$P$10) -> 0 | Q7: =SUM($Q$8:$Q$10) -> 0 | R7: =COUNTIF($R$8:$R$10,"<>") - COUNTIF($R$8:$R$10,"< >") -> 0 | S7: =COUNTIF($S$8:$S$10,"<>") - COUNTIF($S$8:$S$10,"< >") -> 0 | T7: =SUM($T$8:$T$10) -> 0 | U7: =SUM($U$8:$U$10) -> 0 | V7: =COUNTIF($V$8:$V$10,"<>") - COUNTIF($V$8:$V$10,"< >") -> 0 | W7: =COUNTIF($W$8:$W$10,"<>") - COUNTIF($W$8:$W$10,"< >") -> 0 | X7: =SUM($X$8:$X$10) -> 0 | Y7: =SUM($Y$8:$Y$10) -> 0 | Z7: =COUNTIF($Z$8:$Z$10,"<>") - COUNTIF($Z$8:$Z$10,"< >") -> 0 | AA7: =COUNTIF($AA$8:$AA$10,"<>") - COUNTIF($AA$8:$AA$10,"< >") -> 0 | AB7: =SUM($AB$8:$AB$10) -> 0 | AC7: =SUM($AC$8:$AC$10) -> 0 | AD7: =COUNTIF($AD$8:$AD$10,"<>") - COUNTIF($AD$8:$AD$10,"< >") -> 0 | AE7: =COUNTIF($AE$8:$AE$10,"<>") - COUNTIF($AE$8:$AE$10,"< >") -> 0 | AF7: =SUM($AF$8:$AF$10) -> 0 | AG7: =SUM($AG$8:$AG$10) -> 0 | AH7: =COUNTIF($AH$8:$AH$10,"<>") - COUNTIF($AH$8:$AH$10,"< >") -> 0 | AI7: =COUNTIF($AI$8:$AI$10,"<>") - COUNTIF($AI$8:$AI$10,"< >") -> 0 | AJ7: =SUM($AJ$8:$AJ$10) -> 0 | AK7: =SUM($AK$8:$AK$10) -> 0 | AL7: =COUNTIF($AL$8:$AL$10,"<>") - COUNTIF($AL$8:$AL$10,"< >") -> 0 | AM7: =COUNTIF($AM$8:$AM$10,"<>") - COUNTIF($AM$8:$AM$10,"< >") -> 0 | AN7: =SUM($AN$8:$AN$10) -> 0 | AO7: =SUM($AO$8:$AO$10) -> 0 | AP7: =COUNTIF($AP$8:$AP$10,"<>") - COUNTIF($AP$8:$AP$10,"< >") -> 0 | AQ7: =COUNTIF($AQ$8:$AQ$10,"<>") - COUNTIF($AQ$8:$AQ$10,"< >") -> 0 | AR7: =SUM($AR$8:$AR$10) -> 0 | AS7: =SUM($AS$8:$AS$10) -> 0 | AT7: =COUNTIF($AT$8:$AT$10,"<>") - COUNTIF($AT$8:$AT$10,"< >") -> 0 | AU7: =COUNTIF($AU$8:$AU$10,"<>") - COUNTIF($AU$8:$AU$10,"< >") -> 0 | AV7: =SUM($AV$8:$AV$10) -> 0 | AW7: =SUM($AW$8:$AW$10) -> 0 | AX7: =COUNTIF($AX$8:$AX$10,"<>") - COUNTIF($AX$8:$AX$10,"< >") -> 0 | AY7: =COUNTIF($AY$8:$AY$10,"<>") - COUNTIF($AY$8:$AY$10,"< >") -> 0 | AZ7: =SUM($AZ$8:$AZ$10) -> 0 | BA7: =SUM($BA$8:$BA$10) -> 0 | BB7: =COUNTIF($BB$8:$BB$10,"<>") - COUNTIF($BB$8:$BB$10,"< >") -> 0 | BC7: =COUNTIF($BC$8:$BC$10,"<>") - COUNTIF($BC$8:$BC$10,"< >") -> 0 | BD7: =SUM($BD$8:$BD$10) -> 0 | BE7: =SUM($BE$8:$BE$10) -> 0 | BF7: =COUNTIF($BF$8:$BF$10,"<>") - COUNTIF($BF$8:$BF$10,"< >") -> 0 | BG7: =COUNTIF($BG$8:$BG$10,"<>") - COUNTIF($BG$8:$BG$10,"< >") -> 0 | BH7: =SUM($BH$8:$BH$10) -> 0 | BI7: =SUM($BI$8:$BI$10) -> 0 | BJ7: =COUNTIF($BJ$8:$BJ$10,"<>") - COUNTIF($BJ$8:$BJ$10,"< >") -> 0 | BK7: =COUNTIF($BK$8:$BK$10,"<>") - COUNTIF($BK$8:$BK$10,"< >") -> 0 | BL7: =SUM($BL$8:$BL$10) -> 0 | BM7: =SUM($BM$8:$BM$10) -> 0 | BN7: =COUNTIF($BN$8:$BN$10,"<>") - COUNTIF($BN$8:$BN$10,"< >") -> 0 | BO7: =COUNTIF($BO$8:$BO$10,"<>") - COUNTIF($BO$8:$BO$10,"< >") -> 0 | BP7: =SUM($BP$8:$BP$10) -> 0 | BQ7: =SUM($BQ$8:$BQ$10) -> 0 | BR7: =COUNTIF($BR$8:$BR$10,"<>") - COUNTIF($BR$8:$BR$10,"< >") -> 0 | BS7: =COUNTIF($BS$8:$BS$10,"<>") - COUNTIF($BS$8:$BS$10,"< >") -> 0 | BT7: =SUM($BT$8:$BT$10) -> 0 | BU7: =SUM($BU$8:$BU$10) -> 0 | BV7: =COUNTIF($BV$8:$BV$10,"<>") - COUNTIF($BV$8:$BV$10,"< >") -> 0 | BW7: =COUNTIF($BW$8:$BW$10,"<>") - COUNTIF($BW$8:$BW$10,"< >") -> 0 | BX7: =SUM($BX$8:$BX$10) -> 0 | BY7: =SUM($BY$8:$BY$10) -> 0 | BZ7: =COUNTIF($BZ$8:$BZ$10,"<>") - COUNTIF($BZ$8:$BZ$10,"< >") -> 0 | CA7: =COUNTIF($CA$8:$CA$10,"<>") - COUNTIF($CA$8:$CA$10,"< >") -> 0 | CB7: =SUM($CB$8:$CB$10) -> 0 | CC7: =SUM($CC$8:$CC$10) -> 0 | CD7: =COUNTIF($CD$8:$CD$10,"<>") - COUNTIF($CD$8:$CD$10,"< >") -> 0 | CE7: =COUNTIF($CE$8:$CE$10,"<>") - COUNTIF($CE$8:$CE$10,"< >") -> 0 | CF7: =SUM($CF$8:$CF$10) -> 0 | CG7: =SUM($CG$8:$CG$10) -> 0 | CH7: =COUNTIF($CH$8:$CH$10,"<>") - COUNTIF($CH$8:$CH$10,"< >") -> 0 | CI7: =COUNTIF($CI$8:$CI$10,"<>") - COUNTIF($CI$8:$CI$10,"< >") -> 0 | CJ7: =SUM($CJ$8:$CJ$10) -> 0 | CK7: =SUM($CK$8:$CK$10) -> 0 | CL7: =COUNTIF($CL$8:$CL$10,"<>") - COUNTIF($CL$8:$CL$10,"< >") -> 0 | CM7: =COUNTIF($CM$8:$CM$10,"<>") - COUNTIF($CM$8:$CM$10,"< >") -> 0 | CN7: =SUM($CN$8:$CN$10) -> 0 | CO7: =SUM($CO$8:$CO$10) -> 0 | CP7: =COUNTIF($CP$8:$CP$10,"<>") - COUNTIF($CP$8:$CP$10,"< >") -> 0 | CQ7: =COUNTIF($CQ$8:$CQ$10,"<>") - COUNTIF($CQ$8:$CQ$10,"< >") -> 0 | CR7: =SUM($CR$8:$CR$10) -> 0 | CS7: =SUM($CS$8:$CS$10) -> 0 | CT7: =COUNTIF($CT$8:$CT$10,"<>") - COUNTIF($CT$8:$CT$10,"< >") -> 0 | CU7: =COUNTIF($CU$8:$CU$10,"<>") - COUNTIF($CU$8:$CU$10,"< >") -> 0 | CV7: =SUM($CV$8:$CV$10) -> 0 | CW7: =SUM($CW$8:$CW$10) -> 0 | CX7: =COUNTIF($CX$8:$CX$10,"<>") - COUNTIF($CX$8:$CX$10,"< >") -> 0 | CY7: =COUNTIF($CY$8:$CY$10,"<>") - COUNTIF($CY$8:$CY$10,"< >") -> 0 | CZ7: =SUM($CZ$8:$CZ$10) -> 0 | DA7: =SUM($DA$8:$DA$10) -> 0 | DB7: =COUNTIF($DB$8:$DB$10,"<>") - COUNTIF($DB$8:$DB$10,"< >") -> 0 | DC7: =COUNTIF($DC$8:$DC$10,"<>") - COUNTIF($DC$8:$DC$10,"< >") -> 0 | DD7: =SUM($DD$8:$DD$10) -> 0 | DE7: =SUM($DE$8:$DE$10) -> 0 | DF7: =COUNTIF($DF$8:$DF$10,"<>") - COUNTIF($DF$8:$DF$10,"< >") -> 0 | DG7: =COUNTIF($DG$8:$DG$10,"<>") - COUNTIF($DG$8:$DG$10,"< >") -> 0 | DH7: =SUM($DH$8:$DH$10) -> 0 | DI7: =SUM($DI$8:$DI$10) -> 0 | DJ7: =COUNTIF($DJ$8:$DJ$10,"<>") - COUNTIF($DJ$8:$DJ$10,"< >") -> 0 | DK7: =COUNTIF($DK$8:$DK$10,"<>") - COUNTIF($DK$8:$DK$10,"< >") -> 0 | DL7: =SUM($DL$8:$DL$10) -> 0 | DM7: =SUM($DM$8:$DM$10) -> 0 | DN7: =COUNTIF($DN$8:$DN$10,"<>") - COUNTIF($DN$8:$DN$10,"< >") -> 0 | DO7: =COUNTIF($DO$8:$DO$10,"<>") - COUNTIF($DO$8:$DO$10,"< >") -> 0 | DP7: =SUM($DP$8:$DP$10) -> 0 | DQ7: =SUM($DQ$8:$DQ$10) -> 0 | DR7: =COUNTIF($DR$8:$DR$10,"<>") - COUNTIF($DR$8:$DR$10,"< >") -> 0 | DS7: =COUNTIF($DS$8:$DS$10,"<>") - COUNTIF($DS$8:$DS$10,"< >") -> 0 | DT7: =SUM($DT$8:$DT$10) -> 0 | DU7: =SUM($DU$8:$DU$10) -> 0
